fUSD/lending_fUSD_20251103
["ID","MTS","AMOUNT","RATE_DAILY","PERIOD"]
[392971178,1762188057881,-151.0,0.00031517,30]
[392971179,1762188057912,-151.0,0.00031517,30]
[392971180,1762188057943,-162.600324,0.00031517,31]
[392971181,1762188057985,-253.868238,0.00031517,30]
[392971182,1762188058019,-151.0,0.00031517,31]
[392971183,1762188058054,-1689.949775,0.00031517,30]
[392971184,1762188058097,-151.0,0.00031517,31]
[392971185,1762188058132,-1689.949775,0.00031517,30]
[392971186,1762188058164,-162.600324,0.00031517,31]
[392971187,1762188058198,-151.0,0.00031517,31]
[392971188,1762188058231,-1689.949775,0.00031517,30]
[392971189,1762188058265,-162.600324,0.00031517,31]
[392971190,1762188058299,-162.600324,0.00031517,31]
[392971191,1762188058335,-1689.949775,0.00031517,30]
[392971192,1762188058370,-1689.949775,0.00031517,30]
[392971193,1762188058404,-162.600324,0.00031517,31]
[392971194,1762188058438,-151.0,0.00031517,31]
[392971195,1762188058474,-1689.949775,0.00031517,30]
[392971196,1762188058506,-162.600324,0.00031517,31]
[392971197,1762188058539,-151.0,0.00031517,31]
[392971198,1762188058578,-162.600324,0.00031517,31]
[392971199,1762188058609,-151.0,0.00031517,31]
[392971200,1762188058641,-1689.949775,0.00031517,30]
[392971201,1762188058673,-1689.949775,0.00031517,30]
[392971202,1762188058704,-162.600324,0.00031517,31]
[392971203,1762188058739,-151.0,0.00031517,31]
[392971204,1762188058773,-1689.949775,0.00031517,30]
[392971205,1762188058807,-162.600324,0.00031517,31]
[392971206,1762188058838,-154.149232,0.00031517,31]
[392971207,1762188058870,-162.60032,0.00031517,31]
[392971208,1762188058904,-1689.949775,0.00031517,30]
[392971209,1762188058939,-1689.949775,0.00031517,30]
[392971210,1762188058975,-1689.949773,0.00031517,30]
[392971211,1762188059008,-151.0,0.00031517,31]
[392971212,1762188059040,-196.589911,0.00031517,31]
[392971213,1762188059072,-220.43914679,0.00031614,120]
[392971214,1762188059248,-206.75569685,0.00031893,120]
[392971215,1762188059283,-1000.0,0.00032,30]
[392971216,1762188059316,-152.22075611,0.00032,60]
[392971217,1762188059348,-220.88082098,0.00032,120]
[392971218,1762188059380,-1392.14508415,0.00032,120]
[392971219,1762188059412,-291.77330065,0.00032,120]
[392971220,1762188059444,-166.90811472,0.00032,120]
[392971221,1762188059476,-171.06007036,0.00032,120]
[392971222,1762188059508,-705.08027809,0.00032,120]
[392971223,1762188059543,-4577.55671423,0.00032,120]
[392971224,1762188059574,-652.86088613,0.00032,120]
[392971225,1762188059605,-300.0,0.00032,120]
[392971226,1762188059636,-957.94212495,0.00032,120]
[392971227,1762188059666,-40008.0,0.00032,120]
[392971228,1762188059697,-477.5520043,0.00032,120]
[392971229,1762188059728,-477.5520043,0.00032,30]
[392971230,1762188059763,-191.0,0.00032137,120]
[392971231,1762188059797,-300.0,0.000324,120]
[392971232,1762188059828,-206.75569685,0.00032538,120]
[392971233,1762188059864,-200.0,0.0003286,30]
[392971234,1762188059897,-317.0,0.00032877,120]
[392971235,1762188059929,-151.0,0.00032877,30]
[392971236,1762188059961,-196.0,0.00032877,30]
[392971238,1762188059997,-196.0,0.00032877,30]
[392971239,1762188060038,-196.0,0.00032877,30]
[392971240,1762188060083,-196.0,0.00032877,30]
[392971241,1762188060125,-196.0,0.00032877,30]
[392971242,1762188060167,-196.0,0.00032877,30]
[392971243,1762188060201,-196.0,0.00032877,30]
[392971244,1762188060233,-196.0,0.00032877,30]
[392971245,1762188060265,-196.0,0.00032877,30]
[392971246,1762188060300,-196.0,0.00032877,30]
[392971247,1762188060332,-196.0,0.00032877,30]
[392971248,1762188060363,-196.0,0.00032877,30]
[392971249,1762188060395,-196.0,0.00032877,30]
[392971250,1762188060425,-196.0,0.00032877,30]
[392971251,1762188060459,-196.0,0.00032877,30]
[392971252,1762188060491,-196.0,0.00032877,30]
[392971253,1762188060523,-196.0,0.00032877,30]
[392971254,1762188060555,-196.0,0.00032877,30]
[392971255,1762188060586,-196.0,0.00032877,30]
[392971256,1762188060617,-196.0,0.00032877,30]
[392971257,1762188060647,-196.0,0.00032877,30]
[392971258,1762188060676,-196.0,0.00032877,30]
[392971259,1762188060706,-196.0,0.00032877,30]
[392971260,1762188060738,-196.0,0.00032877,30]
[392971261,1762188060768,-196.0,0.00032877,30]
[392971262,1762188060802,-196.0,0.00032877,30]
[392971263,1762188060832,-196.0,0.00032877,30]
[392971264,1762188060864,-196.0,0.00032877,30]
[392971265,1762188060896,-196.0,0.00032877,30]
[392971266,1762188060930,-196.0,0.00032877,30]
[392971267,1762188060962,-196.0,0.00032877,30]
[392971268,1762188060997,-196.0,0.00032877,30]
[392971269,1762188061031,-196.0,0.00032877,30]
[392971270,1762188061066,-196.0,0.00032877,30]
[392971271,1762188061099,-196.0,0.00032877,30]
[392971272,1762188061131,-196.0,0.00032877,30]
[392971273,1762188061164,-196.0,0.00032877,30]
[392971274,1762188061197,-196.0,0.00032877,30]
[392971275,1762188061229,-196.0,0.00032877,30]
[392971276,1762188061260,-196.0,0.00032877,30]
[392971277,1762188061292,-196.0,0.00032877,30]
[392971278,1762188061329,-196.0,0.00032877,30]
[392971279,1762188061364,-196.0,0.00032877,30]
[392971280,1762188061399,-196.0,0.00032877,30]
[392971281,1762188061431,-196.0,0.00032877,30]
[392971282,1762188061464,-196.0,0.00032877,30]
[392971283,1762188061499,-196.0,0.00032877,30]
[392971284,1762188061533,-453.0,0.00032877,30]
[392971285,1762188061570,-453.0,0.00032877,30]
[392971286,1762188061605,-453.0,0.00032877,30]
[392971287,1762188061639,-453.0,0.00032877,30]
[392971288,1762188061672,-453.0,0.00032877,30]
[392971289,1762188061709,-453.0,0.00032877,30]
[392971290,1762188061745,-453.0,0.00032877,30]
[392971291,1762188061779,-200.0,0.00032877,30]
[392971292,1762188061814,-200.0,0.00032877,30]
[392971293,1762188061851,-200.0,0.00032877,30]
[392971294,1762188061885,-200.0,0.00032877,30]
[392971295,1762188061918,-200.0,0.00032877,30]
[392971296,1762188061951,-200.0,0.00032877,30]
[392971297,1762188061984,-200.0,0.00032877,30]
[392971298,1762188062018,-200.0,0.00032877,30]
[392971299,1762188062051,-200.0,0.00032877,30]
[392971300,1762188062084,-200.0,0.00032877,30]
[392971301,1762188062117,-200.0,0.00032877,30]
[392971302,1762188062151,-200.0,0.00032877,30]
[392971303,1762188062185,-200.0,0.00032877,30]
[392971304,1762188062220,-200.0,0.00032877,30]
[392971305,1762188062255,-234.0,0.00032877,30]
[392971306,1762188062290,-234.0,0.00032877,30]
[392971307,1762188062327,-234.0,0.00032877,30]
[392971308,1762188062364,-234.0,0.00032877,30]
[392971309,1762188062399,-234.0,0.00032877,30]
[392971310,1762188062433,-234.0,0.00032877,30]
[392971311,1762188062465,-234.0,0.00032877,30]
[392971312,1762188062497,-234.0,0.00032877,30]
[392971313,1762188062530,-234.0,0.00032877,30]
[392971314,1762188062565,-234.0,0.00032877,30]
[392971315,1762188062597,-234.0,0.00032877,30]
[392971316,1762188062633,-234.0,0.00032877,30]
[392971317,1762188062667,-234.0,0.00032877,30]
[392971318,1762188062697,-202.0,0.00032877,30]
[392971319,1762188062876,-202.0,0.00032877,30]
[392971320,1762188062911,-202.0,0.00032877,30]
[392971321,1762188062942,-202.0,0.00032877,30]
[392971322,1762188062973,-202.0,0.00032877,30]
[392971323,1762188063004,-202.0,0.00032877,30]
[392971324,1762188063037,-202.0,0.00032877,30]
[392971325,1762188063071,-202.0,0.00032877,30]
[392971326,1762188063104,-202.0,0.00032877,30]
[392971327,1762188063138,-202.0,0.00032877,30]
[392971328,1762188063170,-202.0,0.00032877,30]
[392971329,1762188063203,-202.0,0.00032877,30]
[392971330,1762188063235,-202.0,0.00032877,30]
[392971331,1762188063268,-202.0,0.00032877,30]
[392971332,1762188063305,-193.0,0.00032877,30]
[392971333,1762188063340,-193.0,0.00032877,30]
[392971334,1762188063375,-193.0,0.00032877,30]
[392971335,1762188063410,-193.0,0.00032877,30]
[392971336,1762188063444,-193.0,0.00032877,30]
[392971337,1762188063476,-193.0,0.00032877,30]
[392971338,1762188063508,-193.0,0.00032877,30]
[392971339,1762188063543,-193.0,0.00032877,30]
[392971340,1762188063579,-193.0,0.00032877,30]
[392971341,1762188063612,-193.0,0.00032877,30]
[392971342,1762188063645,-193.0,0.00032877,30]
[392971343,1762188063678,-193.0,0.00032877,30]
[392971344,1762188063709,-193.0,0.00032877,30]
[392971345,1762188063742,-193.0,0.00032877,30]
[392971346,1762188063778,-189.0,0.00032877,30]
[392971347,1762188063810,-189.0,0.00032877,30]
[392971348,1762188063846,-189.0,0.00032877,30]
[392971349,1762188063884,-189.0,0.00032877,30]
[392971350,1762188063919,-189.0,0.00032877,30]
[392971351,1762188063954,-189.0,0.00032877,30]
[392971352,1762188063989,-189.0,0.00032877,30]
[392971353,1762188064030,-189.0,0.00032877,30]
[392971354,1762188064064,-189.0,0.00032877,30]
[392971355,1762188064097,-189.0,0.00032877,30]
[392971356,1762188064131,-189.0,0.00032877,30]
[392971357,1762188064164,-189.0,0.00032877,30]
[392971358,1762188064198,-189.0,0.00032877,30]
[392971359,1762188064230,-189.0,0.00032877,30]
[392971360,1762188064265,-209.0,0.00032877,30]
[392971361,1762188064300,-209.0,0.00032877,30]
[392971362,1762188064335,-209.0,0.00032877,30]
[392971363,1762188064370,-209.0,0.00032877,30]
[392971364,1762188064405,-209.0,0.00032877,30]
[392971365,1762188064439,-209.0,0.00032877,30]
[392971366,1762188064474,-209.0,0.00032877,30]
[392971367,1762188064508,-209.0,0.00032877,30]
[392971368,1762188064544,-209.0,0.00032877,30]
[392971369,1762188064579,-209.0,0.00032877,30]
[392971370,1762188064613,-209.0,0.00032877,30]
[392971371,1762188064646,-209.0,0.00032877,30]
[392971372,1762188064680,-209.0,0.00032877,30]
[392971373,1762188064714,-209.0,0.00032877,30]
[392971374,1762188064750,-195.0,0.00032877,30]
[392971375,1762188064784,-195.0,0.00032877,30]
[392971376,1762188064818,-195.0,0.00032877,30]
[392971377,1762188064863,-195.0,0.00032877,30]
[392971378,1762188064903,-195.0,0.00032877,30]
[392971379,1762188064939,-195.0,0.00032877,30]
[392971380,1762188064975,-195.0,0.00032877,30]
[392971381,1762188065013,-195.0,0.00032877,30]
[392971382,1762188065052,-195.0,0.00032877,30]
[392971383,1762188065088,-195.0,0.00032877,30]
[392971384,1762188065124,-195.0,0.00032877,30]
[392971385,1762188065159,-195.0,0.00032877,30]
[392971386,1762188065194,-195.0,0.00032877,30]
[392971387,1762188065230,-195.0,0.00032877,30]
[392971388,1762188065265,-220.88082098,0.00033,120]
[392971389,1762188065301,-1392.14508415,0.00033,120]
[392971390,1762188065339,-291.77330065,0.00033,120]
[392971391,1762188065372,-166.90811472,0.00033,120]
[392971392,1762188065407,-171.06007036,0.00033,120]
[392971393,1762188065447,-705.08027809,0.00033,120]
[392971394,1762188065483,-4577.55671423,0.00033,120]
[392971395,1762188065518,-652.86088613,0.00033,120]
[392971396,1762188065553,-243.0,0.00033,120]
[392971397,1762188065590,-477.5520043,0.00033,120]
[392971398,1762188065625,-477.5520043,0.00033,30]
[392971399,1762188065662,-1000.0,0.0003318,30]
[392971400,1762188065699,-318.45246865,0.0003318,30]
[392971401,1762188065736,-1470.51818515,0.0003318,30]
[392971402,1762188065774,-1000.0,0.0003318,30]
[392971403,1762188065809,-1000.0,0.0003318,30]
[392971404,1762188065845,-1000.0,0.0003318,30]
[392971405,1762188065878,-1182.08223772,0.0003318,30]
[392971406,1762188065912,-1000.0,0.0003318,30]
[392971407,1762188065945,-1000.0,0.0003318,30]
[392971408,1762188065979,-1266.84523447,0.0003318,30]
[392971409,1762188066013,-1000.0,0.0003318,30]
[392971410,1762188066052,-1000.0,0.0003318,30]
[392971411,1762188066086,-1000.0,0.0003318,30]
[392971412,1762188066120,-206.75569685,0.00033182,120]
[392971413,1762188066157,-151.0,0.00033425,30]
[392971414,1762188066191,-400.0,0.00033439,30]
[392971415,1762188066223,-400.0,0.00033439,30]
[392971416,1762188066266,-400.0,0.00033439,30]
[392971417,1762188066316,-400.0,0.00033439,30]
[392971418,1762188066360,-284.91371098,0.00033439,30]
[392971419,1762188066400,-150.0,0.000335,60]
[392971420,1762188066444,-1077.14,0.00033698,120]
[392971421,1762188066486,-220.43914679,0.00033805,120]
[392971422,1762188066532,-206.75569685,0.00033827,120]
[392971423,1762188066577,-220.88082098,0.000339,120]
[392971424,1762188066619,-1392.14508415,0.000339,120]
[392971425,1762188066664,-291.77330065,0.000339,120]
[392971426,1762188066710,-171.06007036,0.000339,120]
[392971427,1762188066752,-705.08027809,0.000339,120]
[392971428,1762188066794,-4577.55671423,0.000339,120]
[392971429,1762188066845,-652.86088613,0.000339,120]
[392971430,1762188066897,-477.5520043,0.000339,120]
[392971431,1762188066942,-477.5520043,0.000339,30]
[392971432,1762188066988,-200.0,0.00034,120]
[392971433,1762188067032,-39104.61028716,0.00034,120]
[392971434,1762188067079,-200.0,0.00034,120]
[392971435,1762188067117,-200.0,0.00034,120]
[392971436,1762188067156,-200.0,0.00034,120]
[392971437,1762188067204,-200.0,0.00034,120]
[392971438,1762188067249,-200.0,0.00034,120]
[392971439,1762188067290,-200.0,0.00034,120]
[392971440,1762188067329,-200.0,0.00034,120]
[392971441,1762188067366,-200.0,0.00034,120]
[392971442,1762188067409,-200.0,0.00034,120]
[392971443,1762188067449,-200.0,0.00034,60]
[392971444,1762188067486,-200.0,0.00034,60]
[392971445,1762188067523,-200.0,0.00034,60]
[392971446,1762188067560,-200.0,0.00034,60]
[392971447,1762188067600,-200.0,0.00034,120]
[392971448,1762188067634,-200.0,0.00034,120]
[392971449,1762188067670,-200.0,0.00034,120]
[392971450,1762188067707,-200.0,0.00034,120]
[392971451,1762188067764,-200.0,0.00034,120]
[392971452,1762188067806,-200.0,0.00034,120]
[392971453,1762188067852,-163.62,0.00034163,60]
[392971454,1762188067891,-384.76,0.000342,30]
[392971455,1762188067935,-163.62,0.00034263,60]
[392971456,1762188067975,-150.77,0.00034312,60]
[392971457,1762188068015,-163.62541642,0.00034363,60]
[392971458,1762188068058,-150.77,0.00034412,60]
[392971459,1762188068097,-206.75569685,0.00034472,120]
[392971460,1762188068140,-150.77,0.00034512,60]
[392971461,1762188068183,-150.77,0.00034612,60]
[392971462,1762188068229,-150.77,0.00034712,60]
[392971463,1762188068273,-150.77,0.00034812,60]
[392971464,1762188068314,-1444.0,0.00034849,120]
[392971465,1762188068354,-1198.67,0.00034867,30]
[392971466,1762188068395,-200.0,0.0003488,30]
[392971467,1762188068437,-150.77,0.00034912,60]
[392971468,1762188068474,-1222.0,0.00035,120]
[392971469,1762188068512,-1000.0,0.00035,30]
[392971470,1762188068550,-50000.0,0.00035,30]
[392971471,1762188068590,-157.98,0.00035,60]
[392971472,1762188068628,-220.88082098,0.00035,120]
[392971473,1762188068666,-1392.14508415,0.00035,120]
[392971474,1762188068702,-291.77330065,0.00035,120]
[392971475,1762188068739,-171.06007036,0.00035,120]
[392971476,1762188068778,-705.08027809,0.00035,120]
[392971477,1762188068817,-4577.55671423,0.00035,120]
[392971478,1762188068855,-652.86088613,0.00035,120]
[392971479,1762188068891,-150.93473558,0.00035,30]
[392971481,1762188068928,-194.8386828,0.00035,120]
[392971482,1762188068965,-150.0,0.00035,120]
[392971483,1762188069002,-1000.0,0.00035,120]
[392971484,1762188069040,-187.55075337,0.00035,30]
[392971485,1762188069081,-218.39323255,0.00035,30]
[392971486,1762188069122,-150.77,0.00035012,60]
[392971487,1762188069162,-150.77,0.00035112,60]
[392971488,1762188069198,-206.75569685,0.00035116,120]
[392971489,1762188069237,-390.03433915,0.000352,120]
[392971490,1762188069276,-150.77,0.00035212,60]
[392971491,1762188069316,-150.77,0.00035312,60]
[392971492,1762188069356,-162.0,0.0003538,30]
[392971493,1762188069395,-708.15,0.00035385,30]
[392971494,1762188069436,-329.95,0.000354,30]
[392971495,1762188069476,-150.77,0.00035412,60]
[392971496,1762188069514,-151.83689077,0.00035421,120]
[392971497,1762188069554,-150.0,0.00035462,120]
[392971498,1762188069594,-167.14718597,0.00035507,30]
[392971499,1762188069632,-150.77,0.00035512,60]
[392971500,1762188069667,-183.83730119,0.0003561,120]
[392971501,1762188069704,-150.77,0.00035612,60]
[392971502,1762188069742,-1043.0,0.00035616,120]
[392971503,1762188069787,-150.0,0.00035638,120]
[392971504,1762188069829,-300.0,0.00035699,75]
[392971505,1762188069869,-150.77,0.00035712,60]
[392971506,1762188069907,-150.0,0.00035724,120]
[392971507,1762188069944,-206.75569685,0.00035761,120]
[392971508,1762188069983,-150.77,0.00035812,60]
[392971509,1762188070021,-175.31166,0.00035888,30]
[392971510,1762188070439,-167.14718597,0.0003589,30]
[392971511,1762188070476,-150.77,0.00035912,60]
[392971512,1762188070510,-515.15875602,0.0003593,30]
[392971513,1762188070543,-500.0,0.0003597,30]
[392971514,1762188070577,-503.35168194,0.0003597,30]
[392971515,1762188070609,-500.0,0.0003597,30]
[392971516,1762188070640,-500.0,0.0003597,30]
[392971517,1762188070673,-500.0,0.0003597,30]
[392971518,1762188070704,-500.0,0.0003597,30]
[392971519,1762188070737,-220.43914679,0.00035997,120]
[392971520,1762188070772,-216.788558,0.00036,90]
[392971521,1762188070806,-9762.67762166,0.00036,100]
[392971522,1762188070842,-150.0,0.00036,120]
[392971523,1762188070874,-200.0,0.00036,120]
[392971524,1762188070906,-12000.0,0.00036,36]
[392971525,1762188070938,-220.88082098,0.00036,120]
[392971526,1762188070969,-1392.14508415,0.00036,120]
[392971527,1762188071001,-291.77330065,0.00036,120]
[392971528,1762188071031,-171.06007036,0.00036,120]
[392971529,1762188071063,-705.08027809,0.00036,120]
[392971530,1762188071095,-4577.55671423,0.00036,120]
[392971531,1762188071126,-652.86088613,0.00036,120]
[392971532,1762188071157,-261.04752607,0.00036,30]
[392971533,1762188071188,-437.4,0.00036,120]
[392971534,1762188071218,-167.03,0.00036,120]
[392971535,1762188071248,-1294.78260002,0.00036,120]
[392971536,1762188071281,-150.77,0.00036012,60]
[392971537,1762188071313,-175.31166,0.00036088,30]
[392971538,1762188071348,-150.77,0.00036112,60]
[392971539,1762188071379,-287.067,0.00036136,30]
[392971540,1762188071412,-4392.47859212,0.000362,30]
[392971541,1762188071447,-150.77,0.00036212,60]
[392971542,1762188071482,-150.0,0.00036215,120]
[392971543,1762188071516,-150.0,0.00036268,120]
[392971544,1762188071550,-167.14718597,0.00036274,30]
[392971545,1762188071584,-175.31166,0.00036288,30]
[392971546,1762188071617,-329.95,0.000363,30]
[392971547,1762188071651,-150.77,0.00036312,60]
[392971548,1762188071684,-150.0,0.00036312,120]
[392971549,1762188071716,-10023.89337837,0.000364,120]
[392971550,1762188071746,-4392.47859213,0.000364,30]
[392971551,1762188071776,-206.75569685,0.00036406,120]
[392971552,1762188071813,-150.77,0.00036412,60]
[392971553,1762188071846,-175.31166,0.00036488,30]
[392971554,1762188071877,-200.0,0.000365,120]
[392971555,1762188071909,-2094.21,0.000365,36]
[392971556,1762188071940,-56159.7577019,0.000365,120]
[392971557,1762188071971,-20000.0,0.000365,120]
[392971558,1762188072006,-150.77,0.00036512,60]
[392971559,1762188072040,-150.77,0.00036612,60]
[392971560,1762188072072,-267.59,0.0003667,120]
[392971561,1762188072103,-175.31166,0.00036688,30]
[392971562,1762188072136,-150.0,0.00036693,120]
[392971563,1762188072167,-150.77,0.00036712,60]
[392971564,1762188072197,-218.02177699,0.00036728,120]
[392971565,1762188072226,-218.02177706,0.00036728,120]
[392971566,1762188072257,-210.88051729,0.00036728,120]
[392971567,1762188072287,-205.95089584,0.00036728,120]
[392971568,1762188072319,-8042.177,0.0003678,120]
[392971569,1762188072350,-251.0,0.000368,120]
[392971570,1762188072382,-274.64667967,0.000368,30]
[392971571,1762188072414,-1329.02081122,0.000368,120]
[392971572,1762188072444,-15435.0,0.00036808,30]
[392971573,1762188072476,-150.77,0.00036812,60]
[392971574,1762188072507,-150.0,0.00036867,30]
[392971575,1762188072561,-619.082631,0.0003687,30]
[392971576,1762188072621,-282.6883143,0.00036873,120]
[392971577,1762188072655,-400.746975,0.00036873,31]
[392971578,1762188072687,-400.746975,0.00036873,31]
[392971579,1762188072721,-400.746975,0.00036873,31]
[392971580,1762188072755,-4051.510915,0.00036873,31]
[392971581,1762188072788,-151.0,0.00036873,31]
[392971582,1762188072822,-400.746975,0.00036873,31]
[392971583,1762188072857,-4051.510915,0.00036873,31]
[392971584,1762188072891,-4051.510915,0.00036873,31]
[392971585,1762188072926,-4051.510923,0.00036873,31]
[392971586,1762188072959,-151.0,0.00036873,31]
[392971587,1762188072992,-398.769316,0.00036873,31]
[392971588,1762188073026,-151.0,0.00036873,31]
[392971589,1762188073062,-398.769316,0.00036873,31]
[392971590,1762188073096,-151.0,0.00036873,31]
[392971591,1762188073129,-398.769316,0.00036873,31]
[392971592,1762188073161,-151.0,0.00036873,31]
[392971593,1762188073193,-398.769325,0.00036873,31]
[392971594,1762188073223,-151.0,0.00036873,31]
[392971595,1762188073255,-151.0,0.00036873,31]
[392971596,1762188073288,-212.857872,0.00036873,31]
[392971597,1762188073322,-212.857872,0.00036873,31]
[392971598,1762188073355,-212.857872,0.00036873,31]
[392971599,1762188073388,-212.857863,0.00036873,31]
[392971600,1762188073420,-175.31166,0.00036888,30]
[392971601,1762188073451,-200.0,0.0003689,30]
[392971602,1762188073482,-170432.29579222,0.000369,30]
[392971603,1762188073514,-219.549972,0.00036906,120]
[392971604,1762188073546,-7940.0,0.00036906,30]
[392971605,1762188073581,-150.77,0.00036912,60]
[392971606,1762188073612,-1430.0,0.00036932,30]
[392971607,1762188073643,-7559.0071995,0.00036954,50]
[392971608,1762188073673,-1171.78522078,0.00036954,50]
[392971609,1762188073704,-261.10038307,0.00036958,120]
[392971610,1762188073736,-2000.0,0.0003696,120]
[392971611,1762188073771,-39823.66248992,0.0003696,30]
[392971612,1762188073803,-162.59,0.00036961,120]
[392971613,1762188073839,-1367169.59712218,0.00036962,30]
[392971614,1762188073875,-439596.10979089,0.00036962,30]
[392971615,1762188074050,500.0,0.00036867,120]
[392971616,1762188080775,-204.285939,0.00031307,30]
[392971617,1762188080815,-151.0,0.00031507,31]
[392971618,1762188080851,-155.605565,0.00031507,31]
[392971619,1762188080910,-151.0,0.00031507,31]
[392971620,1762188080968,-151.0,0.00031507,31]
[392971621,1762188081025,-151.0,0.00031507,31]
[392971622,1762188081089,-153.0,0.00032877,30]
[392971623,1762188081182,-151.0,0.00036867,31]
[392971624,1762188081240,-151.0,0.00036867,31]
[392971625,1762188081297,-151.0,0.00036867,31]
[392971626,1762188081359,-151.0,0.00036867,31]
[392971627,1762188081512,-300.0,0.00036872,81]
[392971628,1762188081570,-1430.0,0.00036932,30]
[392971629,1762188081629,-927573.48733129,0.00036962,30]
[392971630,1762188081690,-1367169.59712218,0.00036962,30]
[392971631,1762188081757,-1367169.59712218,0.00036962,120]
[392971632,1762188081821,-1334636.42692035,0.00036962,120]
[392971637,1762188085851,-230.86,0.000307,30]
[392971638,1762188085911,-230.86,0.000315,30]
[392971639,1762188085969,-151.0,0.00031507,31]
[392971640,1762188086030,-151.0,0.00031507,31]
[392971641,1762188086087,-188.323408,0.00031507,31]
[392971642,1762188086143,-151.0,0.00031517,31]
[392971643,1762188086198,-151.0,0.00031517,31]
[392971644,1762188086252,-151.0,0.00031517,31]
[392971645,1762188086323,-230.86,0.00035,30]
[392971646,1762188086410,-151.0,0.00036867,31]
[392971647,1762188086466,-151.0,0.00036867,31]
[392971648,1762188086522,-151.0,0.00036867,31]
[392971649,1762188086579,-151.0,0.00036867,31]
[392971650,1762188086636,-151.0,0.00036867,31]
[392971651,1762188086693,-151.0,0.00036867,31]
[392971652,1762188086752,-151.0,0.00036867,31]
[392971653,1762188086809,-32533.17020183,0.00036962,120]
[392971654,1762188086870,-1367169.59712218,0.00036962,120]
[392971655,1762188086929,-188.686324,0.00036962,31]
[392971656,1762188086988,-150.0,0.00036966,120]
[392971657,1762188087045,-1000.0,0.0003697,30]
[392971658,1762188087101,-250.0,0.00036973,30]
[392971659,1762188087158,-250.0,0.00036973,33]
[392971660,1762188087212,-250.0,0.00036973,34]
[392971661,1762188087273,-250.0,0.00036973,35]
[392971662,1762188087334,-250.0,0.00036973,37]
[392971663,1762188087394,-250.0,0.00036973,38]
[392971664,1762188087452,-586.17786009,0.00036973,30]
[392971665,1762188087510,-200.0,0.00036973,30]
[392971666,1762188087567,-207.4,0.00036973,33]
[392971667,1762188087626,-215.0738,0.00036973,34]
[392971668,1762188087686,-223.0315306,0.00036973,35]
[392971669,1762188087743,-231.28369723,0.00036973,37]
[392971670,1762188087804,-239.84119403,0.00036973,38]
[392971671,1762188087863,-153.67684116,0.00036974,30]
[392971672,1762188087923,-150.0,0.00036974,30]
[392971673,1762188087986,-150.0,0.00036974,30]
[392971674,1762188088051,-445.0,0.00036986,90]
[392971675,1762188088111,-500.0,0.00037,120]
[392971676,1762188088175,-500.0,0.00037,120]
[392971677,1762188088234,-150.0,0.00037,120]
[392971678,1762188088292,-1000.0,0.00037,120]
[392971679,1762188088350,-1020.05729461,0.00037,120]
[392971680,1762188088410,-160.54,0.00037,60]
[392971681,1762188088468,-150.0,0.00037,60]
[392971682,1762188088527,-150.77,0.00037012,60]
[392971683,1762188088585,-206.75569685,0.0003705,120]